fUSD/lending_fUSD_20250417
["ID","MTS","AMOUNT","RATE_DAILY","PERIOD"]
[358230821,1744858292060,-1480.35,0.0005315,120]
[358230822,1744858292071,-500.0,0.0005315,120]
[358230823,1744858292082,-968.38,0.0005315,120]
[358230824,1744858292094,-500.0,0.0005315,120]
[358230825,1744858292104,-1698.64,0.0005315,120]
[358230826,1744858292114,-500.0,0.0005315,120]
[358230827,1744858292123,-913.88,0.0005315,120]
[358230828,1744858292133,-605.39,0.0005315,120]
[358230829,1744858292143,-1809.14,0.0005315,120]
[358230830,1744858292153,-500.0,0.0005315,120]
[358230831,1744858292162,-511.67472598,0.0005315,120]
[358230832,1744858292172,-500.0,0.0005315,120]
[358230833,1744858292181,-500.0,0.0005315,120]
[358230834,1744858292191,-1186.29,0.0005315,120]
[358230835,1744858292201,-500.0,0.0005315,120]
[358230836,1744858292211,-1699.47,0.0005315,120]
[358230837,1744858292220,-500.0,0.0005315,120]
[358230838,1744858292229,-344.03658995,0.0005315,120]
[358230839,1744858292238,-500.0,0.0005315,120]
[358230840,1744858292248,-500.0,0.0005315,120]
[358230841,1744858292257,-500.0,0.0005315,120]
[358230842,1744858292267,-500.0,0.0005315,120]
[358230843,1744858292277,-500.0,0.0005315,120]
[358230844,1744858292286,-500.0,0.0005315,120]
[358230845,1744858292296,-514.76698407,0.0005315,120]
[358230846,1744858292306,-500.0,0.0005315,120]
[358230847,1744858292316,-949.69,0.0005315,120]
[358230848,1744858292325,-1031.85,0.0005315,120]
[358230849,1744858292335,-500.0,0.0005315,120]
[358230850,1744858292345,-500.0,0.0005315,120]
[358230851,1744858292354,-500.0,0.0005315,120]
[358230852,1744858292363,-500.0,0.0005315,120]
[358230853,1744858292373,-2124.23,0.0005315,120]
[358230854,1744858292383,-500.0,0.0005315,120]
[358230855,1744858292392,-500.0,0.0005315,120]
[358230856,1744858292401,-500.0,0.0005315,120]
[358230857,1744858292411,-2000.32,0.0005315,120]
[358230858,1744858292490,-500.0,0.0005315,120]
[358230859,1744858292500,-500.0,0.0005315,120]
[358230860,1744858292510,-500.0,0.0005315,120]
[358230861,1744858292519,-151.0,0.0005315,120]
[358230862,1744858292530,-151.0,0.0005315,120]
[358230863,1744858292539,-1605.41,0.0005315,120]
[358230864,1744858292550,-688.56,0.0005315,120]
[358230865,1744858292560,-500.0,0.0005315,120]
[358230866,1744858292569,-500.0,0.0005315,120]
[358230867,1744858292579,-500.0,0.0005315,120]
[358230868,1744858292588,-500.0,0.0005315,120]
[358230869,1744858292597,-2385.28,0.0005315,120]
[358230870,1744858292607,-624.24,0.0005315,120]
[358230871,1744858292616,-500.0,0.0005315,120]
[358230872,1744858292626,-1183.2,0.0005315,120]
[358230873,1744858292635,-573.72,0.0005315,120]
[358230874,1744858292645,-500.0,0.0005315,120]
[358230875,1744858292654,-768.61,0.0005315,120]
[358230876,1744858292663,-500.0,0.0005315,120]
[358230877,1744858292673,-500.0,0.0005315,120]
[358230878,1744858292682,-549.79,0.0005315,120]
[358230879,1744858292692,-500.0,0.0005315,120]
[358230880,1744858292701,-799.3,0.0005315,120]
[358230881,1744858292711,-500.0,0.0005315,120]
[358230882,1744858292720,-554.5,0.0005315,120]
[358230883,1744858292730,-664.24,0.0005315,120]
[358230884,1744858292740,-500.0,0.0005315,120]
[358230885,1744858292750,-500.0,0.0005315,120]
[358230886,1744858292760,-718.31,0.0005315,120]
[358230887,1744858292769,-151.0,0.0005315,120]
[358230888,1744858292779,-662.6,0.0005315,120]
[358230889,1744858292789,-151.0,0.0005315,120]
[358230890,1744858292799,-1209.72,0.0005315,120]
[358230891,1744858292808,-500.0,0.0005315,120]
[358230892,1744858292818,-500.0,0.0005315,120]
[358230893,1744858292827,-596.99,0.0005315,120]
[358230894,1744858292836,-500.0,0.0005315,120]
[358230895,1744858292845,-500.0,0.0005315,120]
[358230896,1744858292854,-500.0,0.0005315,120]
[358230897,1744858292863,-500.0,0.0005315,120]
[358230898,1744858292872,-500.0,0.0005315,120]
[358230899,1744858292882,-850.28,0.0005315,120]
[358230900,1744858292891,-1030.4,0.0005315,120]
[358230901,1744858292900,-593.96,0.0005315,120]
[358230902,1744858292909,-733.0,0.0005315,120]
[358230903,1744858292917,-500.0,0.0005315,120]
[358230904,1744858292926,-500.0,0.0005315,120]
[358230905,1744858292934,-500.0,0.0005315,120]
[358230906,1744858292942,-500.0,0.0005315,120]
[358230907,1744858292950,-500.0,0.0005315,120]
[358230908,1744858292958,-552.37,0.0005315,120]
[358230909,1744858292967,-500.0,0.0005315,120]
[358230910,1744858292976,-607.8,0.0005315,120]
[358230911,1744858292985,-661.76,0.0005315,120]
[358230912,1744858292995,-500.0,0.0005315,120]
[358230913,1744858293005,-3208.4,0.0005315,120]
[358230914,1744858293014,-500.0,0.0005315,120]
[358230915,1744858293022,-1305.53,0.0005315,120]
[358230916,1744858293032,-500.0,0.0005315,120]
[358230917,1744858293042,-500.0,0.0005315,120]
[358230918,1744858293052,-500.0,0.0005315,120]
[358230919,1744858293062,-556.46,0.0005315,120]
[358230920,1744858293071,-500.0,0.0005315,120]
[358230921,1744858293081,-500.0,0.0005315,120]
[358230922,1744858293091,-641.55,0.0005315,120]
[358230923,1744858293100,-500.0,0.0005315,120]
[358230924,1744858293109,-661.52,0.0005315,120]
[358230925,1744858293119,-1210.11,0.0005315,120]
[358230926,1744858293128,-151.0,0.0005315,120]
[358230927,1744858293137,-151.0,0.0005315,120]
[358230928,1744858293146,-500.0,0.0005315,120]
[358230929,1744858293156,-500.0,0.0005315,120]
[358230930,1744858293166,-500.0,0.0005315,120]
[358230931,1744858293175,-500.0,0.0005315,120]
[358230932,1744858293185,-533.22,0.0005315,120]
[358230933,1744858293194,-567.71,0.0005315,120]
[358230934,1744858293205,-1681.4,0.0005315,120]
[358230935,1744858293214,-500.0,0.0005315,120]
[358230936,1744858293224,-500.0,0.0005315,120]
[358230937,1744858293233,-580.76,0.0005315,120]
[358230938,1744858293243,-2231.33,0.0005315,120]
[358230939,1744858293253,-500.0,0.0005315,120]
[358230940,1744858293263,-500.0,0.0005315,120]
[358230941,1744858293274,-885.45,0.0005315,120]
[358230942,1744858293284,-1782.49,0.0005315,120]
[358230943,1744858293294,-500.0,0.0005315,120]
[358230944,1744858293304,-500.0,0.0005315,120]
[358230945,1744858293314,-712.83,0.0005315,120]
[358230946,1744858293324,-500.0,0.0005315,120]
[358230947,1744858293334,-546.52,0.0005315,120]
[358230948,1744858293344,-655.93,0.0005315,120]
[358230949,1744858293353,-500.0,0.0005315,120]
[358230950,1744858293363,-500.0,0.0005315,120]
[358230951,1744858293372,-789.88,0.0005315,120]
[358230952,1744858293382,-500.0,0.0005315,120]
[358230953,1744858293392,-500.0,0.0005315,120]
[358230954,1744858293401,-704.7,0.0005315,120]
[358230955,1744858293411,-500.0,0.0005315,120]
[358230956,1744858293420,-500.0,0.0005315,120]
[358230957,1744858293431,-153.231391,0.0005315,120]
[358230958,1744858293441,-500.0,0.0005315,120]
[358230959,1744858293455,-500.0,0.0005315,120]
[358230960,1744858293465,-500.0,0.0005315,120]
[358230961,1744858293474,-866.19,0.0005315,120]
[358230962,1744858293484,-683.62,0.0005315,14]
[358230963,1744858293495,-500.0,0.0005315,120]
[358230964,1744858293505,-590.35,0.0005315,120]
[358230965,1744858293515,-500.0,0.0005315,120]
[358230966,1744858293525,-863.64,0.0005315,120]
[358230967,1744858293535,-665.74,0.0005315,120]
[358230968,1744858293545,-500.0,0.0005315,120]
[358230969,1744858293555,-500.0,0.0005315,120]
[358230970,1744858293565,-500.0,0.0005315,120]
[358230971,1744858293575,-723.71,0.0005315,120]
[358230972,1744858293585,-897.5,0.0005315,120]
[358230973,1744858293595,-505.14181573,0.0005315,120]
[358230974,1744858293605,-500.0,0.0005315,120]
[358230975,1744858293615,-1160.66,0.0005315,120]
[358230976,1744858293625,-500.0,0.0005315,120]
[358230977,1744858293636,-500.0,0.0005315,120]
[358230978,1744858293646,-500.0,0.0005315,120]
[358230979,1744858293656,-478.26688262,0.0005315,120]
[358230980,1744858293665,-1171.05,0.0005315,120]
[358230981,1744858293675,-500.0,0.0005315,120]
[358230982,1744858293685,-151.0,0.0005315,120]
[358230983,1744858293695,-200.385904,0.0005315,120]
[358230984,1744858293705,-744.26,0.0005315,120]
[358230985,1744858293715,-500.0,0.0005315,120]
[358230986,1744858293724,-500.0,0.0005315,120]
[358230987,1744858293735,-500.0,0.0005315,120]
[358230988,1744858293744,-500.0,0.0005315,120]
[358230989,1744858293754,-500.0,0.0005315,120]
[358230990,1744858293764,-1205.23,0.0005315,120]
[358230991,1744858293774,-500.32,0.0005315,120]
[358230992,1744858293784,-1086.92,0.0005315,120]
[358230993,1744858293795,-500.0,0.0005315,120]
[358230994,1744858293804,-500.0,0.0005315,120]
[358230995,1744858293814,-413.91385366,0.0005315,120]
[358230996,1744858293824,-500.0,0.0005315,120]
[358230997,1744858293834,-1810.597504,0.0005315,120]
[358230998,1744858293844,-1810.597504,0.0005315,120]
[358230999,1744858293853,-500.0,0.0005315,120]
[358231000,1744858293863,-500.0,0.0005315,120]
[358231001,1744858293873,-500.0,0.0005315,120]
[358231002,1744858293883,-1810.597504,0.0005315,120]
[358231003,1744858293894,-649.32,0.0005315,120]
[358231004,1744858293904,-550.3,0.0005315,120]
[358231005,1744858293914,-1810.597494,0.0005315,120]
[358231006,1744858293924,-500.0,0.0005315,120]
[358231007,1744858293934,-500.0,0.0005315,120]
[358231008,1744858293943,-500.0,0.0005315,120]
[358231009,1744858293953,-500.0,0.0005315,120]
[358231010,1744858293963,-500.0,0.0005315,120]
[358231011,1744858293972,-500.0,0.0005315,120]
[358231012,1744858293983,-379.2911988,0.0005315,120]
[358231013,1744858293992,-1003.8,0.0005315,120]
[358231014,1744858294002,-511.19,0.0005315,120]
[358231015,1744858294012,-500.0,0.0005315,120]
[358231016,1744858294023,-500.0,0.0005315,120]
[358231017,1744858294033,-500.0,0.0005315,120]
[358231018,1744858294044,-1086.98,0.0005315,120]
[358231019,1744858294054,-500.0,0.0005315,14]
[358231020,1744858294064,-1473.01,0.0005315,120]
[358231021,1744858294077,-265.554085,0.0005315,120]
[358231022,1744858294087,-500.0,0.0005315,120]
[358231023,1744858294098,-500.0,0.0005315,120]
[358231024,1744858294108,-500.0,0.0005315,120]
[358231025,1744858294118,-500.0,0.0005315,120]
[358231026,1744858294128,-500.0,0.0005315,120]
[358231027,1744858294138,-500.0,0.0005315,120]
[358231028,1744858294148,-500.0,0.0005315,120]
[358231029,1744858294158,-668.38,0.0005315,120]
[358231030,1744858294168,-546.25803776,0.0005315,120]
[358231031,1744858294179,-500.0,0.0005315,120]
[358231032,1744858294189,-500.0,0.0005315,120]
[358231033,1744858294199,-500.0,0.0005315,120]
[358231034,1744858294209,-322.26953583,0.0005315,120]
[358231035,1744858294219,-500.0,0.0005315,120]
[358231036,1744858294230,-1006.93,0.0005315,120]
[358231037,1744858294240,-500.0,0.0005315,120]
[358231038,1744858294250,-500.0,0.0005315,120]
[358231039,1744858294261,-500.0,0.0005315,120]
[358231040,1744858294271,-2928.53,0.0005315,120]
[358231041,1744858294282,-510.89,0.0005315,120]
[358231042,1744858294292,-2162.74,0.0005315,120]
[358231043,1744858294303,-1005.07,0.0005315,120]
[358231044,1744858294314,-575.0,0.0005315,120]
[358231045,1744858294324,-500.0,0.0005315,120]
[358231046,1744858294334,-564.12287697,0.0005315,120]
[358231047,1744858294347,-521.33,0.0005315,120]
[358231048,1744858294357,-1721.06,0.0005315,120]
[358231049,1744858294367,-500.0,0.0005315,120]
[358231050,1744858294377,-1964.51,0.0005315,120]
[358231051,1744858294386,-500.0,0.0005315,120]
[358231052,1744858294396,-500.0,0.0005315,120]
[358231053,1744858294405,-731.66,0.0005315,120]
[358231054,1744858294414,-500.0,0.0005315,120]
[358231055,1744858294425,-500.0,0.0005315,120]
[358231056,1744858294443,-1698.37,0.0005315,120]
[358231057,1744858294455,-500.0,0.0005315,120]
[358231058,1744858294466,-529.51775479,0.0005315,120]
[358231059,1744858294475,-933.1,0.0005315,118]
[358231060,1744858294485,-1973.91,0.0005315,120]
[358231061,1744858294496,-571.54,0.0005315,120]
[358231062,1744858294507,-1524.84,0.0005315,120]
[358231063,1744858294516,-500.0,0.0005315,120]
[358231064,1744858294526,-500.0,0.0005315,120]
[358231065,1744858294536,-2172.87,0.0005315,120]
[358231066,1744858294546,-841.2,0.0005315,120]
[358231067,1744858294557,-500.0,0.0005315,120]
[358231068,1744858294567,-2000.0,0.0005315,2]
[358231069,1744858294579,-500.0,0.0005315,120]
[358231070,1744858294589,-184.763129,0.0005315,120]
[358231071,1744858294599,-184.763129,0.0005315,120]
[358231072,1744858294609,-500.0,0.0005315,120]
[358231073,1744858294618,-777.54,0.0005315,120]
[358231074,1744858294628,-875.1,0.0005315,120]
[358231075,1744858294638,-500.0,0.0005315,120]
[358231076,1744858294647,-500.0,0.0005315,120]
[358231077,1744858294657,-184.763129,0.0005315,120]
[358231078,1744858294667,-1921.13,0.0005315,120]
[358231079,1744858294677,-184.763124,0.0005315,120]
[358231080,1744858294688,-500.0,0.0005315,120]
[358231081,1744858294698,-549.62,0.0005315,120]
[358231082,1744858294707,-500.0,0.0005315,120]
[358231083,1744858294716,-1092.41,0.0005315,120]
[358231084,1744858294727,-500.0,0.0005315,120]
[358231085,1744858294737,-500.0,0.0005315,120]
[358231086,1744858294747,-559.1,0.0005315,120]
[358231087,1744858294757,-500.0,0.0005315,120]
[358231088,1744858294768,-236.4237108,0.0005315,120]
[358231089,1744858294778,-500.0,0.0005315,120]
[358231090,1744858294788,-1445.66,0.0005315,120]
[358231091,1744858294799,-500.0,0.0005315,120]
[358231092,1744858294809,-1406.86,0.0005315,120]
[358231093,1744858294820,-500.0,0.0005315,120]
[358231094,1744858294830,-500.0,0.0005315,120]
[358231095,1744858294840,-500.0,0.0005315,120]
[358231096,1744858294851,-2414.01,0.0005315,120]
[358231097,1744858294861,-1089.46,0.0005315,120]
[358231098,1744858294871,-151.0,0.0005315,120]
[358231099,1744858294881,-187.037287,0.0005315,120]
[358231100,1744858294891,-512.5322668,0.0005315,120]
[358231101,1744858294901,-500.0,0.0005315,120]
[358231102,1744858294911,-610.72,0.0005315,120]
[358231103,1744858294921,-500.0,0.0005315,120]
[358231104,1744858294931,-630.5684186,0.0005315,120]
[358231105,1744858294941,-4094.93,0.0005315,120]
[358231106,1744858294952,-1596.73,0.0005315,120]
[358231107,1744858294962,-434.84673002,0.0005315,120]
[358231108,1744858294972,-500.0,0.0005315,120]
[358231109,1744858294983,-500.0,0.0005315,120]
[358231110,1744858294993,-500.0,0.0005315,120]
[358231111,1744858295003,-500.0,0.0005315,120]
[358231112,1744858295014,-500.0,0.0005315,120]
[358231113,1744858295024,-5735.765822,0.0005315,120]
[358231114,1744858295034,-5735.765822,0.0005315,120]
[358231115,1744858295044,-500.0,0.0005315,120]
[358231116,1744858295056,-582.87,0.0005315,120]
[358231117,1744858295066,-1132.52,0.0005315,120]
[358231118,1744858295079,-500.0,0.0005315,120]
[358231119,1744858295091,-500.0,0.0005315,120]
[358231120,1744858295102,-500.0,0.0005315,120]
[358231121,1744858295113,-500.0,0.0005315,120]
[358231122,1744858295124,-500.0,0.0005315,120]
[358231123,1744858295135,-500.0,0.0005315,120]
[358231124,1744858295144,-5735.765822,0.0005315,120]
[358231125,1744858295155,-1052.23,0.0005315,120]
[358231126,1744858295165,-5735.765814,0.0005315,120]
[358231127,1744858295175,-500.0,0.0005315,120]
[358231128,1744858295187,-1093.58,0.0005315,120]
[358231129,1744858295197,-500.0,0.0005315,120]
[358231130,1744858295208,-1545.17,0.0005315,120]
[358231131,1744858295218,-1053.96,0.0005315,120]
[358231132,1744858295229,-500.0,0.0005315,120]
[358231133,1744858295238,-500.0,0.0005315,120]
[358231134,1744858295248,-500.0,0.0005315,120]
[358231135,1744858295259,-2317.13,0.0005315,120]
[358231136,1744858295269,-500.0,0.0005315,120]
[358231137,1744858295279,-500.0,0.0005315,120]
[358231138,1744858295290,-630.82,0.0005315,120]
[358231139,1744858295301,-1244.03,0.0005315,120]
[358231140,1744858295311,-780.6,0.0005315,120]
[358231141,1744858295321,-500.0,0.0005315,120]
[358231142,1744858295331,-500.0,0.0005315,120]
[358231143,1744858295341,-1200.78,0.0005315,120]
[358231144,1744858295351,-500.0,0.0005315,120]
[358231145,1744858295361,-500.0,0.0005315,120]
[358231146,1744858295372,-456.54727856,0.0005315,120]
[358231147,1744858295381,-2648.1,0.0005315,120]
[358231148,1744858295391,-500.0,0.0005315,120]
[358231149,1744858295402,-976.31,0.0005315,120]
[358231150,1744858295412,-500.0,0.0005315,120]
[358231151,1744858295423,-500.0,0.0005315,120]
[358231152,1744858295433,-500.0,0.0005315,120]
[358231153,1744858295443,-521.33859338,0.0005315,120]
[358231154,1744858295456,-627.75,0.0005315,120]
[358231155,1744858295467,-151.0,0.0005315,120]
[358231156,1744858295477,-158.430162,0.0005315,120]
[358231157,1744858295487,-500.0,0.0005315,120]
[358231158,1744858295499,-500.0,0.0005315,120]
[358231159,1744858295509,-1484.61,0.0005315,120]
[358231160,1744858295519,-500.0,0.0005315,120]
[358231161,1744858295530,-500.0,0.0005315,120]
[358231162,1744858295540,-500.0,0.0005315,120]
[358231163,1744858295551,-664.07,0.0005315,120]
[358231164,1744858295561,-500.0,0.0005315,120]
[358231165,1744858295571,-152.966505,0.0005315,120]
[358231166,1744858295581,-500.0,0.0005315,120]
[358231167,1744858295591,-500.0,0.0005315,120]
[358231168,1744858295601,-500.0,0.0005315,120]
[358231169,1744858295612,-520.83,0.0005315,120]
[358231170,1744858295622,-500.0,0.0005315,120]
[358231171,1744858295632,-150.0,0.00053217,7]
[358231172,1744858295642,-150.0,0.00053293,7]
[358231173,1744858295652,-150.0,0.00053331,7]
[358231174,1744858295662,-150.0,0.00053397,7]
[358231175,1744858295673,-1000.0,0.000534,120]
[358231176,1744858295683,-671.68,0.00053412,120]
[358231177,1744858295693,-892.86,0.00053412,120]
[358231178,1744858295703,-500.0,0.00053412,120]
[358231179,1744858295713,-500.0,0.00053412,120]
[358231180,1744858295723,-338.97610137,0.00053412,120]
[358231181,1744858295732,-150.0,0.00053419,7]
[358231182,1744858295742,-250.0,0.00053421,10]
[358231183,1744858295752,-248.01,0.00053423,120]
[358231184,1744858295762,-671.919064,0.00053424,120]
[358231185,1744858295773,-155.383724,0.00053424,120]
[358231186,1744858295783,-500.0,0.00053424,120]
[358231187,1744858295794,-500.0,0.00053424,120]
[358231188,1744858295805,-1027.9,0.00053424,120]
[358231189,1744858295815,-500.0,0.00053424,120]
[358231190,1744858295825,-1018.07,0.00053424,120]
[358231191,1744858295835,-264.81593398,0.00053424,120]
[358231192,1744858295844,-500.0,0.00053424,120]
[358231193,1744858295854,-500.0,0.00053424,120]
[358231194,1744858295864,-2828.8,0.00053424,2]
[358231195,1744858295874,-500.0,0.00053424,120]
[358231196,1744858295884,-131030.97,0.00053424,7]
[358231197,1744858295894,-1074.6,0.00053424,120]
[358231198,1744858295905,-512.75,0.00053424,120]
[358231199,1744858295916,-500.0,0.00053424,120]
[358231200,1744858295926,-500.0,0.00053424,120]
[358231201,1744858295937,-500.0,0.00053424,120]
[358231202,1744858295947,-500.0,0.00053424,120]
[358231203,1744858295957,-499.00110039,0.00053424,120]
[358231204,1744858295968,-408.11431217,0.00053424,120]
[358231205,1744858295977,-500.0,0.00053424,120]
[358231206,1744858295987,-500.0,0.00053424,120]
[358231207,1744858295997,-500.0,0.00053424,120]
[358231208,1744858296008,-501.51,0.00053424,120]
[358231209,1744858296018,-500.0,0.00053424,120]
[358231210,1744858296028,-500.0,0.00053424,120]
[358231211,1744858296221,-500.0,0.00053424,120]
[358231212,1744858296231,-500.0,0.00053424,120]
[358231213,1744858296241,-407.51299731,0.00053424,120]
[358231214,1744858296251,-500.0,0.00053424,120]
[358231215,1744858296261,-500.0,0.00053424,120]
[358231216,1744858296271,-1163.74,0.00053424,120]
[358231217,1744858296281,-500.0,0.00053424,120]
[358231218,1744858296291,-500.0,0.00053424,120]
[358231219,1744858296304,-942.51,0.00053424,120]
[358231220,1744858296314,-500.0,0.00053424,120]
[358231221,1744858296325,-500.0,0.00053424,120]
[358231222,1744858296335,-1668.15,0.00053424,120]
[358231223,1744858296345,-500.0,0.00053424,120]
[358231224,1744858296355,-500.0,0.00053424,120]
[358231225,1744858296365,-500.0,0.00053424,120]
[358231226,1744858296375,-500.0,0.00053424,120]
[358231227,1744858296385,-500.0,0.00053424,120]
[358231228,1744858296394,-500.0,0.00053424,120]
[358231229,1744858296404,-500.0,0.00053424,120]
[358231230,1744858296414,-500.0,0.00053424,120]
[358231231,1744858296423,-747.62,0.00053424,120]
[358231232,1744858296434,-500.0,0.00053424,120]
[358231233,1744858296444,-500.0,0.00053424,120]
[358231234,1744858296456,-500.0,0.00053424,120]
[358231235,1744858296465,-500.0,0.00053424,120]
[358231236,1744858296475,-580.63386117,0.00053424,120]
[358231237,1744858296485,-500.0,0.00053424,120]
[358231238,1744858296495,-269.6625675,0.00053424,120]
[358231239,1744858296505,-500.0,0.00053424,120]
[358231240,1744858296514,-628.20274913,0.00053424,120]
[358231241,1744858296524,-500.0,0.00053424,120]
[358231242,1744858296533,-500.0,0.00053424,120]
[358231243,1744858296543,-500.0,0.00053424,120]
[358231244,1744858296554,-500.0,0.00053424,120]
[358231245,1744858296564,-592.42800913,0.00053424,120]
[358231246,1744858296573,-500.0,0.00053424,120]
[358231247,1744858296583,-500.0,0.00053424,120]
[358231248,1744858296593,-500.0,0.00053424,120]
[358231249,1744858296603,-500.0,0.00053424,120]
[358231250,1744858296614,-1683.3,0.00053424,120]
[358231251,1744858296624,-964.81,0.00053424,30]
[358231252,1744858296634,-505.19439052,0.00053424,120]
[358231253,1744858296644,-673.66,0.00053424,2]
[358231254,1744858296654,-500.0,0.00053424,120]
[358231255,1744858296665,-500.0,0.00053424,120]
[358231256,1744858296675,-500.0,0.00053424,120]
[358231257,1744858296685,-739.67,0.00053424,120]
[358231258,1744858296695,-739.67,0.00053424,120]
[358231259,1744858296704,-500.0,0.00053424,120]
[358231260,1744858296714,-500.0,0.00053424,120]
[358231261,1744858296724,-500.0,0.00053424,120]
[358231262,1744858296734,-500.0,0.00053424,120]
[358231263,1744858296744,-1031.81046135,0.00053424,120]
[358231264,1744858296753,-500.0,0.00053424,120]
[358231265,1744858296763,-614.55,0.00053424,120]
[358231266,1744858296773,-500.0,0.00053424,120]
[358231267,1744858296782,-500.0,0.00053424,120]
[358231268,1744858296792,-500.0,0.00053424,120]
[358231269,1744858296802,-500.0,0.00053424,120]
[358231270,1744858296812,-594.43704349,0.00053424,120]
[358231271,1744858296822,-500.0,0.00053424,120]
[358231272,1744858296832,-1727.98,0.00053424,120]
[358231273,1744858296842,-500.0,0.00053424,120]
[358231274,1744858296851,-500.0,0.00053424,120]
[358231275,1744858296861,-500.0,0.00053424,120]
[358231276,1744858296871,-539.28,0.00053424,120]
[358231277,1744858296880,-500.0,0.00053424,120]
[358231278,1744858296890,-1975.51,0.00053424,120]
[358231279,1744858296900,-500.0,0.00053424,120]
[358231280,1744858296910,-567.86,0.00053424,120]
[358231281,1744858296919,-500.0,0.00053424,120]
[358231282,1744858296929,-1074.62,0.00053424,120]
[358231283,1744858296938,-815.44,0.00053424,120]
[358231284,1744858296948,-500.0,0.00053424,120]
[358231285,1744858296958,-500.0,0.00053424,120]
[358231286,1744858296968,-669.36,0.00053424,120]
[358231287,1744858296978,-1264.26,0.00053424,120]
[358231288,1744858296989,-500.0,0.00053424,120]
[358231289,1744858297000,-714.49,0.00053424,120]
[358231290,1744858297010,-500.0,0.00053424,120]
[358231291,1744858297019,-500.0,0.00053424,120]
[358231292,1744858297029,-500.0,0.00053424,120]
[358231293,1744858297038,-767.85,0.00053424,120]
[358231294,1744858297049,-500.0,0.00053424,120]
[358231295,1744858297059,-1949.99,0.00053424,120]
[358231296,1744858297069,-1953.53,0.00053424,120]
[358231297,1744858297080,-500.0,0.00053424,120]
[358231298,1744858297090,-500.0,0.00053424,120]
[358231299,1744858297099,-500.0,0.00053424,120]
[358231300,1744858297109,-500.0,0.00053424,120]
[358231301,1744858297118,-500.0,0.00053424,120]
[358231302,1744858297129,-609.46,0.00053424,120]
[358231303,1744858297138,-500.0,0.00053424,120]
[358231304,1744858297148,-500.0,0.00053424,120]
[358231305,1744858297156,-500.0,0.00053424,120]
[358231306,1744858297166,-832.63,0.00053424,120]
[358231307,1744858297176,-500.0,0.00053424,120]
[358231308,1744858297186,-2867.27,0.00053424,120]
[358231309,1744858297196,-500.0,0.00053424,120]
[358231310,1744858297206,-500.0,0.00053424,120]
[358231311,1744858297216,-1201.93,0.00053424,120]
[358231312,1744858297226,-500.0,0.00053424,120]
[358231313,1744858297235,-500.0,0.00053424,120]
[358231314,1744858297245,-500.0,0.00053424,120]
[358231315,1744858297255,-906.23,0.00053424,120]
[358231316,1744858297265,-500.0,0.00053424,120]
[358231317,1744858297275,-1534.19,0.00053424,120]
[358231318,1744858297284,-500.0,0.00053424,120]
[358231319,1744858297294,-500.0,0.00053424,120]
[358231320,1744858297305,-500.0,0.00053424,120]